bitfinex/quotes_SOLUSD_20240716
["timestamp","ask_amount","ask_price","bid_price","bid_amount"]
[1721114895973,6.4416,155.25,155.17,22.0853]
[1721114896279,6.4416,155.25,155.18,1.28847922]
[1721114896593,38.2,155.26,155.17,22.0853]
[1721114896887,38.2,155.26,155.18,1.28847596]
[1721114897298,44.6408,155.26,155.18,1.28847596]
[1721114897468,6.4412,155.25,155.17,22.0853]
[1721114897973,6.4418,155.24,155.18,1.28838847]
[1721114898395,38.2,155.26,155.17,22.0853]
[1721114898682,44.641,155.26,155.18,1.28846401]
[1721114898887,44.641,155.26,155.17,22.0853]
[1721114899064,6.4412,155.25,155.17,22.0853]
[1721114899264,38.2,155.26,155.17,22.0853]
[1721114899461,44.6408,155.26,155.17,22.0853]
[1721114900083,6.4403,155.27,155.18,1.28844586]
[1721114900291,6.4403,155.27,155.17,22.0853]
[1721114900492,6.4403,155.27,155.18,1.28832351]
[1721114900986,6.4399,155.28,155.18,1.28832351]
[1721114902000,6.4404,155.27,155.18,1.28832351]
[1721114902296,6.44,155.28,155.18,1.28832351]
[1721114902467,6.4412,155.25,155.17,22.0853]
[1721114904069,6.4416,155.24,155.17,22.0853]
[1721114904794,6.442,155.23,155.17,22.0853]
[1721114905099,6.4417,155.24,155.17,22.0853]
[1721114907504,6.4413,155.25,155.17,22.0853]
[1721114909583,6.4417,155.24,155.17,22.0853]
[1721114909785,6.4412,155.25,155.17,22.0853]
[1721114911314,44.6408,155.26,155.18,1.28857722]
[1721114911493,38.2,155.26,155.18,1.28857722]
[1721114912907,44.6408,155.26,155.17,22.0853]
[1721114913193,38.2,155.26,155.17,22.0853]
[1721114913508,6.4412,155.25,155.17,22.0853]
[1721114914380,6.4419,155.24,155.17,22.0853]
[1721114915813,6.4412,155.25,155.17,22.0853]
[1721114916106,44.6408,155.26,155.18,1.28782748]
[1721114917502,38.2,155.26,155.18,1.28782748]
[1721114917683,38.2,155.26,155.17,22.0853]
[1721114918021,6.4413,155.25,155.17,22.0853]
[1721114918175,6.4417,155.24,155.17,22.0853]
[1721114919294,38.2,155.26,155.17,22.0853]
[1721114919499,6.4416,155.24,155.17,22.0853]
[1721114920309,6.4416,155.24,155.18,1.2886509]
[1721114920793,6.4416,155.24,155.17,22.0853]
[1721114921115,38.2,155.25,155.18,1.15131971]
[1721114921281,6.4421,155.23,155.17,22.0853]
[1721114921481,6.4417,155.24,155.17,22.0853]
[1721114921681,6.442,155.23,155.17,22.0853]
[1721114923583,44.6413,155.25,155.18,1.28873718]
[1721114923788,20.0,155.24,155.18,1.28873718]
[1721114924095,26.4417,155.24,155.18,1.28873718]
[1721114927812,6.4421,155.23,155.18,1.28873718]
[1721114928003,26.4417,155.24,155.18,1.28873718]
[1721114928418,38.2,155.25,155.18,1.28859679]
[1721114928604,16.0981,155.3,155.18,1.28859679]
[1721114928806,38.2,155.25,155.17,22.0853]
[1721114929024,6.442,155.23,155.17,22.0853]
[1721114929617,6.442,155.23,155.18,1.28867323]
[1721114930115,6.442,155.23,155.17,22.0853]
[1721114930302,19.16,155.2,155.17,22.0853]
[1721114931708,19.16,155.19,155.17,22.0853]
[1721114931914,19.16,155.18,155.17,15.762]
[1721114932216,19.16,155.18,155.14,0.7943647]
[1721114932404,19.16,155.15,155.14,0.7943647]
[1721114934317,6.4438,155.19,155.14,0.7943647]
[1721114938235,44.7933,155.2,155.14,0.7943647]
[1721114939601,6.4438,155.19,155.14,0.7943647]
[1721114940598,6.4442,155.18,155.14,0.7943647]
[1721114942799,6.4438,155.19,155.14,0.7943647]
[1721114943303,44.7933,155.2,155.14,0.7943647]
[1721114943911,12.0072158,155.25,155.14,2.08348282]
[1721114943912,38.35,155.23,155.14,2.08348282]
[1721114944337,20.0,155.22,155.14,2.08348282]
[1721114944623,20.0,155.22,155.15,1.28891951]
[1721114945003,6.4428,155.21,155.14,0.7943647]
[1721114945198,38.35,155.23,155.14,0.7943647]
[1721114945516,31.1835,155.27,155.15,24.19925713]
[1721114945517,6.4407,155.27,155.15,24.19925713]
[1721114945720,44.7898,155.29,155.16,21.9354]
[1721114946027,6.4398,155.29,155.17,23.2237606]
[1721114946333,38.35,155.29,155.17,21.9354]
[1721114946518,6.4404,155.27,155.17,21.9354]
[1721114947734,44.7899,155.29,155.18,1.2884719]
[1721114948409,6.4399,155.28,155.18,1.2884719]
[1721114948830,38.35,155.29,155.18,1.2884719]
[1721114949127,38.35,155.29,155.23,4.67596179]
[1721114949324,20.0,155.28,155.23,4.67596179]
[1721114949899,38.35,155.29,155.23,4.67596179]
[1721114950227,6.4386,155.32,155.24,23.96678354]
[1721114951104,44.7879,155.33,155.24,23.96678354]
[1721114951405,38.35,155.33,155.24,23.96678354]
[1721114951727,44.7879,155.33,155.24,23.96678354]
[1721114952122,38.35,155.33,155.24,23.96678354]
[1721114952435,38.35,155.33,155.24,22.6785]
[1721114952735,6.4396,155.29,155.24,22.6785]
[1721114953239,38.35,155.3,155.24,22.6785]
[1721114953410,44.7893,155.3,155.24,22.6785]
[1721114953937,38.35,155.3,155.24,22.6785]
[1721114954814,6.4395,155.29,155.24,22.6785]
[1721114955012,6.4416,155.24,155.23,4.67596179]
[1721114955325,64.7916,155.24,155.23,4.67596179]
[1721114956213,45.6116,155.24,155.23,4.67596179]
[1721114956628,81.0756,155.24,155.23,4.67596179]
[1721114956850,74.634,155.24,155.14,0.7943647]
[1721114957430,19.17,155.15,155.14,0.7943647]
[1721114958306,6.4441,155.18,155.14,0.7943647]
[1721114958502,20.0,155.17,155.14,0.7943647]
[1721114958933,38.36,155.19,155.14,0.7943647]
[1721114959231,6.4432,155.21,155.14,0.7943647]
[1721114959406,6.4437,155.19,155.14,0.7943647]
[1721114960244,0.95014454,155.15,155.14,0.7943647]
[1721114963841,38.36,155.22,155.14,2.08333148]
[1721114964144,38.36,155.28,155.14,0.7943647]
[1721114964145,6.4421,155.23,155.14,0.7943647]
[1721114964522,20.0,155.22,155.14,0.7943647]
[1721114967145,6.4415,155.25,155.15,15.4602]
[1721114967345,6.4416,155.24,155.16,6.384]
[1721114967552,6.65633463,155.28,155.16,6.384]
[1721114967736,6.4408,155.26,155.16,6.384]
[1721114968336,44.60816373,155.31,155.15,15.4602]
[1721114968337,6.65616373,155.31,155.18,6.4533]
[1721114968532,38.36,155.32,155.2,15.2566]
[1721114968727,38.36,155.32,155.22,6.4533]
[1721114968929,6.4388,155.31,155.23,1.28802551]
[1721114969238,38.36,155.32,155.24,1.28798729]
[1721114969543,44.7986,155.32,155.24,1.28798729]
[1721114970158,6.4387,155.31,155.24,1.28798729]
[1721114970357,38.36,155.32,155.24,1.28798729]
[1721114970526,6.438,155.33,155.25,15.2566]
[1721114970727,6.438,155.33,155.26,1.2878385]
[1721114970926,6.438,155.33,155.27,1.28775555]
[1721114971427,6.4374,155.35,155.27,1.28775555]
[1721114971657,6.4378,155.34,155.27,1.28775555]
[1721114971848,6.4379,155.33,155.27,1.28775555]
[1721114972830,6.4383,155.32,155.25,15.2566]
[1721114973331,6.4378,155.34,155.25,15.2566]
[1721114973536,6.4379,155.33,155.25,15.2566]
[1721114973733,38.36,155.36,155.25,15.2566]
[1721114973957,6.4371,155.35,155.27,6.0811]
[1721114974752,20.0,155.34,155.27,6.0811]
[1721114975457,6.4379,155.33,155.27,6.0811]
[1721114976760,26.4375,155.34,155.27,6.0811]
[1721114976969,6.4382,155.33,155.27,6.0811]
[1721114978569,26.4375,155.34,155.27,6.0811]
[1721114979955,35.00725652,155.43,155.27,6.0811]
[1721114980250,6.4355,155.39,155.29,15.2581]
[1721114980452,6.4355,155.39,155.3,1.28737136]
[1721114980828,38.36,155.41,155.31,6.6185]
[1721114981029,6.4346,155.41,155.32,1.2872399]
[1721114981256,6.4346,155.41,155.33,1.28716153]
[1721114981853,6.65860727,155.42,155.33,1.28716153]
[1721114982769,13.09290727,155.42,155.33,1.28716153]
[1721114983357,6.65860727,155.42,155.31,6.6185]
[1721114983566,6.435,155.4,155.31,6.6185]
[1721114983741,6.435,155.4,155.32,1.28726154]
[1721114983942,58.36,155.41,155.31,6.6185]
[1721114984143,6.4366,155.37,155.31,6.6185]
[1721114984474,58.36,155.41,155.31,6.6185]
[1721114984642,6.437,155.36,155.31,6.6185]
[1721114987381,6.4375,155.34,155.29,15.2581]
[1721114987543,20.0,155.33,155.27,6.5375]
[1721114987738,6.4384,155.32,155.27,6.5375]
[1721114989137,20.0,155.33,155.27,6.5375]
[1721114989341,26.4379,155.33,155.27,6.5375]
[1721114989544,38.36,155.32,155.25,15.0005]
[1721114990457,6.4393,155.3,155.25,15.0005]
[1721114991273,6.4393,155.3,155.23,6.4015]
[1721114991274,6.44,155.28,155.23,6.4015]
[1721114991462,6.44,155.28,155.2,15.323]
[1721114992179,38.36,155.26,155.2,15.323]
[1721114992760,44.8009,155.26,155.2,15.323]
[1721114993069,38.36,155.26,155.2,15.323]
[1721114993378,44.8008,155.26,155.2,15.323]
[1721114993974,38.36,155.26,155.19,6.412]
[1721114994152,20.0,155.25,155.19,6.412]
[1721114994351,20.0,155.25,155.16,16.2318]
[1721114995248,6.442,155.23,155.16,16.2318]
[1721114996077,6.4416,155.24,155.16,16.2318]
[1721114996273,20.0,155.23,155.16,17.52055939]
[1721114996448,20.0,155.23,155.16,16.2318]
[1721114999277,38.36,155.26,155.17,1.28867083]
[1721114999462,20.0,155.25,155.17,1.28867083]
[1721114999781,20.0,155.26,155.17,1.28867083]
[1721114999974,20.0,155.27,155.17,1.28867083]
[1721115000177,20.0,155.27,155.16,16.2318]
[1721115000562,6.4432,155.21,155.16,16.2318]
[1721115001087,6.4434,155.2,155.16,16.2318]
[1721115003274,6.4429,155.21,155.16,16.2318]
[1721115003779,6.4434,155.2,155.16,16.2318]
[1721115004755,6.4429,155.21,155.16,16.2318]
[1721115005174,38.36,155.22,155.16,16.2318]
[1721115005486,20.0,155.21,155.16,16.2318]
[1721115007559,38.36,155.19,155.14,0.7943647]
[1721115007773,20.0,155.18,155.14,0.7943647]
[1721115007959,6.4449,155.17,155.14,0.7943647]
[1721115008183,20.0,155.16,155.14,0.7943647]
[1721115008509,26.445,155.16,155.14,0.7943647]
[1721115009203,6.4453,155.15,155.14,0.7943647]
[1721115009494,26.4453,155.15,155.14,0.7943647]
[1721115010059,39.43175279,155.24,155.14,0.7943647]
[1721115010264,61.68715279,155.24,155.15,6.3516]
[1721115010487,45.09885279,155.24,155.15,6.3516]
[1721115010790,71.0489,155.28,155.15,6.3516]
[1721115010791,6.4415,155.25,155.15,6.3516]
[1721115010958,6.4417,155.24,155.14,0.7943647]
[1721115011163,38.36,155.17,155.14,0.7943647]
[1721115011475,6.4453,155.15,155.14,0.7943647]
[1721115011992,38.36,155.17,155.14,0.7943647]
[1721115011993,44.8049,155.17,155.14,0.7943647]
[1721115012158,64.8051,155.16,155.14,0.7943647]
[1721115013468,6.4453,155.15,155.14,0.7943647]
[1721115014000,26.4453,155.15,155.14,0.7943647]
[1721115017897,20.0,155.15,155.14,0.7943647]
[1721115018605,44.8049,155.16,155.14,0.7943647]
[1721115019396,6.4453,155.15,155.14,0.7943647]
[1721115020485,26.4453,155.15,155.14,0.7943647]
[1721115021192,61.9187,155.15,155.14,0.7943647]
[1721115021376,113.65970103,155.15,155.14,0.7943647]
[1721115023306,49.29970103,155.15,155.14,0.7943647]
[1721115023541,26.4453,155.15,155.14,0.7943647]
[1721115024604,33.1854884,155.15,155.14,0.7943647]
[1721115025874,13.1854884,155.15,155.14,0.7943647]
[1721115026173,38.36,155.16,155.14,0.7943647]
[1721115027282,20.0,155.15,155.14,0.7943647]
[1721115027612,26.4453,155.15,155.14,0.7943647]
[1721115027921,20.0,155.15,155.14,0.7943647]
[1721115028825,44.8041,155.19,155.14,0.7943647]
[1721115029716,6.4443,155.18,155.14,0.7943647]
[1721115030096,26.4445,155.17,155.14,0.7943647]
[1721115030298,6.4449,155.16,155.14,0.7943647]
[1721115030499,6.4453,155.15,155.14,0.7943647]
[1721115030821,26.4453,155.15,155.14,0.7943647]
[1721115032698,6.4442,155.18,155.14,0.7943647]
[1721115033896,51.54264468,155.19,155.14,0.7943647]
[1721115034112,44.8037,155.19,155.14,0.7943647]
[1721115035217,6.4432,155.21,155.14,0.7943647]
[1721115035418,6.444,155.19,155.14,0.7943647]
[1721115035945,38.36,155.22,155.14,0.7943647]
[1721115036122,38.36,155.22,155.15,15.3876]
[1721115036320,44.8025,155.22,155.15,15.3876]
[1721115037024,6.443,155.21,155.15,15.3876]
[1721115037327,6.4424,155.22,155.17,6.1347]
[1721115038313,6.4429,155.21,155.17,6.1347]
[1721115038711,6.4423,155.23,155.17,6.1347]
[1721115038915,6.73452191,155.24,155.18,1.2887589]
[1721115039309,44.8015,155.25,155.18,1.2887589]
[1721115039639,6.4416,155.24,155.17,6.1347]
[1721115040132,6.4411,155.26,155.18,1.28864454]
[1721115041352,44.8005,155.27,155.18,1.28864454]
[1721115041505,20.0,155.26,155.18,1.28864454]
[1721115042021,6.4413,155.25,155.18,1.28864454]
[1721115042437,6.4418,155.24,155.17,6.1347]
[1721115042856,6.4421,155.23,155.17,6.1347]
[1721115044153,6.4416,155.24,155.17,6.1347]
[1721115044367,20.0,155.26,155.17,6.1347]
[1721115045059,6.4423,155.23,155.17,6.1347]
[1721115045421,6.4426,155.22,155.17,6.1347]
[1721115045720,6.4421,155.23,155.17,6.1347]
[1721115047756,44.8016,155.24,155.17,6.1347]
[1721115048460,20.0,155.26,155.17,6.1347]
[1721115048637,16.47785912,155.3,155.17,6.1347]
[1721115048843,6.4395,155.29,155.19,16.3073]
[1721115049026,6.4395,155.29,155.2,1.28837217]
[1721115049225,6.44,155.28,155.21,1.28837022]
[1721115050157,6.44,155.28,155.2,1.2884185]
[1721115050457,6.44,155.28,155.21,1.2883948]
[1721115051142,51.5375183,155.3,155.21,1.2883948]
[1721115051444,20.0,155.29,155.21,6.2383]
[1721115051633,20.0,155.29,155.22,1.28813464]
[1721115051836,20.0,155.29,155.21,6.2383]
[1721115051837,6.4403,155.28,155.21,6.2383]
[1721115052849,6.4404,155.27,155.21,6.2383]
[1721115053360,26.4399,155.29,155.21,6.2383]
[1721115053605,20.0,155.29,155.21,6.2383]
[1721115053767,26.4395,155.29,155.21,6.2383]
[1721115053936,6.4403,155.28,155.21,6.2383]
[1721115054131,6.4408,155.26,155.21,6.2383]
[1721115054840,44.8003,155.28,155.21,6.2383]
[1721115055176,6.4411,155.26,155.21,6.2383]
[1721115055946,6.4412,155.25,155.19,16.3073]
[1721115056165,38.36,155.28,155.19,16.3073]
[1721115056466,26.4407,155.27,155.19,16.3073]
[1721115056754,6.4416,155.24,155.19,16.3073]
[1721115056930,38.36,155.25,155.19,16.3073]
[1721115056931,26.4421,155.23,155.19,16.3073]
[1721115058874,6.4421,155.23,155.19,16.3073]
[1721115059560,38.7412,155.29,155.19,16.3073]
[1721115059749,6.4408,155.26,155.19,16.3073]
[1721115059950,20.0,155.25,155.19,16.3073]
[1721115060451,44.8004,155.27,155.19,16.3073]
[1721115060858,6.4408,155.26,155.19,16.3073]
[1721115061762,38.36,155.27,155.19,16.3073]
[1721115061952,6.4421,155.23,155.19,16.3073]
[1721115062449,6.4425,155.22,155.19,16.3073]
[1721115062654,38.36,155.21,155.14,17.4255647]
[1721115063163,6.4441,155.18,155.14,17.4255647]
[1721115063377,6.4437,155.19,155.14,17.4255647]
[1721115063550,20.0,155.18,155.14,17.4255647]
[1721115064191,26.4437,155.19,155.14,17.4255647]
[1721115064983,20.0,155.19,155.14,17.4255647]
[1721115066092,26.4438,155.19,155.14,17.4255647]
[1721115066377,26.4439,155.19,155.14,17.4255647]
[1721115066686,20.0,155.19,155.14,17.4255647]
[1721115066859,6.4449,155.16,155.14,17.4255647]
[1721115067057,20.0,155.2,155.14,0.7943647]
[1721115067058,6.4453,155.15,155.14,0.7943647]
[1721115067977,6.4436,155.2,155.14,0.7943647]
[1721115068282,6.73845737,155.21,155.14,0.7943647]
[1721115068872,38.36,155.22,155.14,0.7943647]
[1721115069167,20.0,155.21,155.15,21.6121]
[1721115069371,6.4424,155.23,155.15,21.6121]
[1721115069574,6.4425,155.22,155.15,21.6121]
[1721115069780,6.4432,155.21,155.15,21.6121]
[1721115070077,6.4434,155.2,155.15,21.6121]
[1721115070381,44.8028,155.22,155.15,21.6121]
[1721115070987,38.36,155.22,155.15,21.6121]
[1721115071355,6.4446,155.17,155.14,0.7943647]
[1721115071555,44.804,155.19,155.14,0.7943647]
[1721115072276,6.4433,155.2,155.14,0.7943647]
[1721115072492,20.0,155.19,155.14,0.7943647]
[1721115073175,15.2162,155.24,155.14,0.7943647]
[1721115073374,6.442,155.23,155.14,0.7943647]
[1721115073576,6.4427,155.22,155.14,0.7943647]
[1721115074168,6.73617393,155.25,155.16,22.44]
[1721115074371,6.4395,155.29,155.17,1.28867583]
[1721115074569,6.4395,155.29,155.18,1.28840208]
[1721115074877,6.4403,155.27,155.17,20.0]
[1721115075063,6.4404,155.27,155.17,20.0]
[1721115075263,6.4399,155.28,155.18,1.28854258]
[1721115075483,45.08857055,155.3,155.18,1.28854258]
[1721115075670,6.4395,155.29,155.17,20.0]
[1721115075859,20.0,155.28,155.17,20.0]
[1721115076103,6.4402,155.28,155.17,20.0]
[1721115076275,6.4402,155.28,155.18,1.28840243]
[1721115077093,6.4409,155.26,155.17,20.0]
[1721115077384,20.0,155.29,155.17,20.0]
[1721115077687,26.4395,155.29,155.17,20.0]
[1721115077992,6.44,155.28,155.17,20.0]
[1721115078290,6.4403,155.27,155.17,20.0]
[1721115079182,6.4403,155.27,155.16,22.44]
[1721115079494,6.4403,155.27,155.17,20.0]
[1721115079697,26.4399,155.29,155.18,1.28844307]
[1721115081493,20.0,155.29,155.17,20.0]
[1721115082076,6.4399,155.28,155.17,20.0]
[1721115082400,26.4396,155.29,155.17,20.0]
[1721115082598,6.44,155.28,155.18,1.28837517]
[1721115082762,6.44,155.28,155.18,1.28837713]
[1721115083175,6.44,155.28,155.19,16.3976]
[1721115083394,20.0,155.29,155.19,16.3976]
[1721115083620,6.4404,155.27,155.19,16.3976]
[1721115083890,6.4404,155.27,155.19,17.6859599]
[1721115084073,26.4399,155.29,155.19,17.6859599]
[1721115084269,6.44,155.28,155.19,16.3976]
[1721115085406,6.4408,155.26,155.19,16.3976]
[1721115085892,6.4404,155.27,155.19,16.3976]
[1721115086682,20.0,155.29,155.19,16.3976]
[1721115086998,6.4402,155.28,155.19,16.3976]
[1721115087168,20.0,155.29,155.19,16.3976]
[1721115087169,6.4407,155.27,155.19,16.3976]
[1721115087794,6.4407,155.27,155.2,1.28846421]
[1721115087993,6.4408,155.26,155.19,16.3976]
[1721115088492,6.4412,155.25,155.19,16.3976]
[1721115089392,6.4422,155.23,155.19,16.3976]
[1721115089771,6.4417,155.24,155.19,16.3976]
[1721115091798,6.4422,155.23,155.19,16.3976]
[1721115092097,6.4417,155.24,155.19,16.3976]
[1721115092275,26.09105074,155.28,155.16,6.2791]
[1721115092276,6.4428,155.21,155.16,6.2791]
[1721115093498,20.0,155.2,155.15,15.3184]
[1721115093699,6.4437,155.19,155.15,15.3184]
[1721115093916,20.0,155.2,155.15,15.3184]
[1721115094902,26.4433,155.2,155.15,15.3184]
[1721115095114,6.4439,155.19,155.14,0.7943647]
[1721115095405,26.4434,155.2,155.14,0.7943647]
[1721115096285,64.7934,155.2,155.14,0.7943647]
[1721115096907,44.7934,155.2,155.14,0.7943647]
[1721115097286,6.444,155.19,155.14,0.7943647]
[1721115098013,44.7933,155.2,155.14,0.7943647]
[1721115098190,38.35,155.2,155.14,0.7943647]
[1721115099276,44.7936,155.2,155.14,0.7943647]
[1721115100108,6.4437,155.19,155.14,0.7943647]
[1721115100692,26.4441,155.18,155.14,0.7943647]
[1721115100885,6.4446,155.17,155.14,0.7943647]
[1721115101397,6.4453,155.15,155.14,0.7943647]
[1721115101728,26.4453,155.15,155.14,0.7943647]
[1721115105716,20.0,155.15,155.14,0.7943647]
[1721115105920,26.4453,155.15,155.14,0.7943647]
[1721115110907,6.72784322,155.16,155.14,0.7943647]
[1721115111127,38.35,155.18,155.14,0.7943647]
[1721115111714,6.4432,155.21,155.14,16.9102647]
[1721115111715,38.35,155.21,155.14,16.9102647]
[1721115111917,6.4438,155.19,155.14,16.9102647]
[1721115112235,6.4442,155.18,155.14,16.9102647]
[1721115113037,57.71,155.21,155.14,16.9102647]
[1721115113333,38.35,155.21,155.14,16.9102647]
[1721115113544,20.0,155.2,155.14,16.9102647]
[1721115113839,6.445,155.16,155.14,0.7943647]
[1721115114134,6.4453,155.15,155.14,0.7943647]
[1721115114644,26.4453,155.15,155.14,0.7943647]
[1721115115526,64.7953,155.15,155.14,0.7943647]
[1721115116112,58.35,155.15,155.14,0.7943647]
[1721115116433,20.0,155.15,155.14,0.7943647]
[1721115117345,26.4453,155.15,155.14,0.7943647]
[1721115119328,6.4453,155.15,155.14,0.7943647]
[1721115119638,20.0,155.15,155.14,0.7943647]
[1721115120134,26.4453,155.15,155.14,0.7943647]
[1721115121244,20.0,155.15,155.14,0.7943647]
[1721115121446,6.4438,155.19,155.14,0.7943647]
[1721115122155,6.4433,155.2,155.14,16.3346647]
[1721115122311,6.4439,155.19,155.14,16.3346647]
[1721115122515,38.35,155.21,155.14,16.3346647]
[1721115122732,6.444,155.19,155.14,16.3346647]
[1721115122917,26.4442,155.18,155.14,16.3346647]
[1721115123135,20.0,155.18,155.14,16.3346647]
[1721115123337,6.4441,155.18,155.14,16.3346647]
[1721115123640,6.4437,155.19,155.14,16.3346647]
[1721115126646,6.4446,155.17,155.14,16.3346647]
[1721115127021,20.0,155.2,155.14,0.7943647]
[1721115127220,6.4453,155.15,155.14,0.7943647]
[1721115127720,6.4449,155.16,155.14,0.7943647]
[1721115127937,38.35,155.18,155.14,0.7943647]
[1721115128239,6.4447,155.17,155.14,0.7943647]
[1721115128420,20.0,155.16,155.14,0.7943647]
[1721115129537,26.4451,155.16,155.14,0.7943647]
[1721115129741,6.4453,155.15,155.14,0.7943647]
[1721115130340,26.4453,155.15,155.14,0.7943647]
[1721115131230,64.7953,155.15,155.14,0.7943647]
[1721115133729,71.5237032,155.15,155.14,0.7943647]
[1721115134448,64.7953,155.15,155.14,0.7943647]
[1721115134635,71.5241255,155.15,155.14,0.7943647]
[1721115135226,90.8841255,155.15,155.14,0.7943647]
[1721115135435,84.4388255,155.15,155.06,15.0293]
[1721115135652,38.35,155.12,155.06,15.0293]
[1721115136168,20.0,155.11,155.06,15.0293]
[1721115136351,6.4478,155.1,155.06,15.0293]
[1721115136940,26.4471,155.11,155.06,15.0293]
[1721115138632,6.4464,155.13,155.06,15.0293]
[1721115138828,6.7288255,155.15,155.07,1.2895553]
[1721115139153,38.35,155.21,155.08,21.512]
[1721115139332,38.35,155.21,155.09,21.28909086]
[1721115139744,6.4436,155.2,155.09,21.28909086]
[1721115140156,6.4438,155.19,155.09,21.28909086]
[1721115140653,6.4433,155.2,155.09,21.28909086]
[1721115140855,6.4437,155.19,155.09,20.0]
[1721115141057,38.35,155.21,155.09,20.0]
[1721115141265,38.35,155.21,155.1,1.28897675]
[1721115141936,20.0,155.2,155.1,1.28897675]
[1721115142353,26.4434,155.2,155.1,1.28897675]
[1721115142857,26.4434,155.2,155.09,20.0]
[1721115143454,6.4437,155.19,155.09,20.0]
[1721115144342,6.4446,155.17,155.08,21.512]
[1721115144733,6.4445,155.17,155.08,21.512]
[1721115145434,6.4451,155.16,155.08,21.512]
[1721115146843,6.4445,155.17,155.08,21.512]
[1721115147345,38.35,155.18,155.08,21.512]
[1721115147346,6.4449,155.16,155.08,21.512]
[1721115149848,38.35,155.18,155.08,21.512]
[1721115150058,6.446,155.14,155.08,21.512]
[1721115150549,38.35,155.15,155.08,21.512]
[1721115150753,6.447,155.12,155.08,21.512]
[1721115151185,38.35,155.15,155.08,21.512]
[1721115151349,6.447,155.12,155.08,21.512]
[1721115151668,6.447,155.12,155.04,21.6134]
[1721115152547,6.447,155.11,155.04,21.6134]
[1721115152948,6.4465,155.13,155.05,1.28985374]
[1721115153266,6.4451,155.16,155.05,1.28985374]
[1721115153467,20.0,155.15,155.04,21.6134]
[1721115153669,26.4454,155.15,155.04,21.6134]
[1721115155046,38.35,155.14,155.04,21.6134]
[1721115155241,6.4462,155.13,155.04,21.6134]
[1721115155966,6.4476,155.1,155.04,21.6134]
[1721115156162,6.4466,155.12,155.04,21.6134]
[1721115159051,38.35,155.14,155.04,21.6134]
[1721115159252,6.4471,155.11,155.04,21.6134]
[1721115160064,6.4475,155.1,155.04,21.6134]
[1721115160566,6.4483,155.08,155.04,15.4551]
[1721115160972,6.4479,155.09,155.04,15.4551]
[1721115161266,20.0,155.08,155.04,15.4551]
[1721115161972,26.4482,155.08,155.04,15.4551]
[1721115162655,20.0,155.08,155.04,15.4551]
[1721115163482,6.4479,155.09,155.04,15.4551]
[1721115163688,26.4483,155.08,155.04,15.4551]
[1721115168084,20.0,155.08,155.0,121.57461788]
[1721115168382,6.4496,155.05,155.0,121.57461788]
[1721115170780,6.4499,155.04,155.0,121.57461788]
[1721115171383,38.35,155.05,155.0,100.04051788]
[1721115171691,20.0,155.04,155.0,100.04051788]
[1721115172361,6.4508,155.02,155.0,100.04051788]
[1721115172575,6.4511,155.01,155.0,100.04051788]
[1721115173175,44.8007,155.02,155.0,100.04051788]
[1721115173663,38.35,155.02,155.0,100.04051788]
[1721115173869,20.0,155.04,155.0,100.04051788]
[1721115174676,6.4504,155.03,155.0,100.04051788]
[1721115174882,6.4508,155.02,155.0,100.04051788]
[1721115175490,6.4511,155.01,155.0,100.04051788]
[1721115175782,38.35,155.02,155.0,100.04051788]
[1721115175988,44.8009,155.02,155.0,100.04051788]
[1721115176199,6.4511,155.01,155.0,100.04051788]
[1721115176988,26.4511,155.01,155.0,100.04051788]
[1721115178480,22.5806,155.0,154.99,0.7943647]
[1721115178686,61.9406,155.0,154.99,0.7943647]
[1721115179192,61.9406,155.0,154.99,6.47e-05]